bitfinex/quotes_ETHUSD_20250524
["timestamp","ask_amount","ask_price","bid_price","bid_amount"]
[1748083233470,3.89734387,2565.9,2565.8,8.0]
[1748083233676,3.89734387,2565.9,2565.8,11.77279898]
[1748083234491,11.681,2566.2,2565.9,0.8117]
[1748083234689,11.681,2566.2,2566.1,2.77532134]
[1748083234690,3.89693932,2566.2,2566.1,2.77532134]
[1748083234984,3.8968124,2566.2,2566.1,2.77532134]
[1748083235183,3.8968124,2566.2,2566.1,3.34986534]
[1748083236903,3.89660486,2566.4,2566.1,3.34986534]
[1748083237198,0.7854,2567.0,2566.2,8.7596]
[1748083237199,3.89635891,2566.5,2566.2,8.7596]
[1748083237349,3.89635891,2566.5,2566.4,10.77532134]
[1748083237552,3.89635891,2566.5,2566.4,12.75039766]
[1748083238088,3.89635891,2566.5,2566.4,12.96623953]
[1748083239099,3.89635891,2566.5,2566.4,10.99116321]
[1748083239402,3.89635891,2566.5,2566.4,10.77532134]
[1748083241613,11.682,2566.7,2566.5,0.7596]
[1748083241899,3.89620509,2566.6,2566.5,8.7596]
[1748083242071,3.89620509,2566.6,2566.5,9.91309213]
[1748083242277,15.57810906,2566.7,2566.5,9.91309213]
[1748083242478,15.5780675,2566.7,2566.5,9.91309213]
[1748083243415,15.57795629,2566.8,2566.6,0.21578569]
[1748083243566,15.57795629,2566.8,2566.7,10.77532134]
[1748083244293,15.57695629,2566.8,2566.7,10.77532134]
[1748083245001,3.89595629,2566.8,2566.7,10.99136089]
[1748083245202,3.89561274,2567.0,2566.7,6.08930224]
[1748083245389,11.681,2566.9,2566.7,6.08930224]
[1748083245701,15.57676917,2566.9,2566.7,6.08930224]
[1748083246083,0.773,2568.4,2567.4,8.7595]
[1748083246426,3.94423264,2567.9,2567.8,10.77532134]
[1748083249316,0.05,2567.9,2567.8,10.77532134]
[1748083249669,3.94423264,2567.9,2567.8,10.77532134]
[1748083249911,3.94423264,2567.9,2567.8,11.59792662]
[1748083252350,0.05,2567.9,2567.8,11.59792662]
[1748083252557,3.94423264,2567.9,2567.8,11.59792662]
[1748083253038,0.05,2567.9,2567.8,11.59792662]
[1748083253241,0.05,2567.9,2567.8,12.42182662]
[1748083253443,3.94423264,2567.9,2567.8,12.42182662]
[1748083254946,0.05,2567.9,2567.8,12.42182662]
[1748083255458,3.94423264,2567.9,2567.8,8.0]
[1748083255823,0.05,2568.9,2567.8,8.0]
[1748083256015,0.05,2569.9,2568.8,3.59922134]
[1748083256261,0.32509959,2569.7,2569.6,8.0]
[1748083257751,0.32509959,2569.7,2569.6,8.19520823]
[1748083257915,0.32509959,2569.7,2569.6,1.97609741]
[1748083258123,0.32509959,2569.7,2569.6,10.81422962]
[1748083258438,0.05,2569.9,2569.7,8.0]
[1748083258773,0.05,2569.9,2569.6,2.77532134]
[1748083258951,0.05,2569.9,2569.7,0.7558]
[1748083259472,0.05,2569.9,2569.8,10.77532134]
[1748083259639,0.05,2569.9,2569.8,12.33683229]
[1748083262663,0.05,2569.9,2569.8,12.88683229]
[1748083262928,0.05,2569.9,2569.8,9.56151095]
[1748083263172,0.05,2569.9,2569.8,12.88683229]
[1748083263955,0.05,2569.9,2569.8,16.7781857]
[1748083264286,0.48510943,2570.7,2570.4,0.55]
[1748083264448,0.48510943,2570.7,2570.6,10.77532134]
[1748083264772,0.48510943,2570.7,2570.6,12.08112134]
[1748083264943,0.48510943,2570.7,2570.6,13.49005156]
[1748083265142,4.37510048,2570.7,2570.6,8.0]
[1748083266580,4.37510048,2570.7,2570.6,10.77532134]
[1748083266966,0.48510943,2570.7,2570.6,10.77532134]
[1748083267171,4.37510048,2570.7,2570.6,10.77532134]
[1748083268277,4.37510048,2570.7,2570.6,8.0]
[1748083269193,4.37510048,2570.7,2570.6,10.77532134]
[1748083269356,4.32355686,2570.7,2570.6,10.77532134]
[1748083269546,4.32355686,2570.7,2570.6,8.0]
[1748083269938,4.32355686,2570.7,2570.6,10.77532134]
[1748083270143,0.43356581,2570.7,2570.6,11.92843347]
[1748083270784,4.32355686,2570.7,2570.6,11.92843347]
[1748083273000,4.32355686,2570.7,2570.6,10.77532134]
[1748083276187,0.43356581,2570.7,2570.6,12.08112134]
[1748083278212,4.32355686,2570.7,2570.6,12.08112134]
[1748083278529,3.89029371,2570.5,2570.4,3.55522134]
[1748083278694,3.89045499,2570.4,2570.2,24.50132134]
[1748083278894,0.43356581,2570.7,2570.3,8.7799]
[1748083279088,0.43356581,2570.7,2570.6,12.10522134]
[1748083279283,0.14946581,2570.7,2570.6,12.10522134]
[1748083279818,4.03945686,2570.7,2570.6,33.83122134]
[1748083280026,0.14946581,2570.7,2570.6,31.0559]
[1748083280318,0.14946581,2570.7,2570.6,36.93681134]
[1748083280553,0.14946581,2570.7,2570.6,34.16149]
[1748083280758,0.14946581,2570.7,2570.6,36.93681134]
[1748083281053,4.03945686,2570.7,2570.6,8.0]
[1748083281254,4.03945686,2570.7,2570.6,10.77532134]
[1748083284655,4.03945686,2570.7,2570.6,11.14083321]
[1748083285160,3.85178565,2570.7,2570.6,11.14083321]
[1748083285551,3.54237255,2570.8,2570.7,8.0]
[1748083286068,7.43221228,2570.8,2570.7,8.58042854]
[1748083286864,7.43221228,2570.8,2570.7,0.58042854]
[1748083287571,3.54237255,2570.8,2570.7,8.58042854]
[1748083288039,7.43221228,2570.8,2570.7,8.58042854]
[1748083288847,8.55801813,2570.8,2570.7,8.58042854]
[1748083289333,9.672272,2570.8,2570.7,0.58042854]
[1748083289527,9.672272,2570.8,2570.7,0.36551187]
[1748083289732,9.672272,2570.8,2570.6,0.4576545]
[1748083289733,3.88999105,2570.7,2570.5,8.0]
[1748083289974,0.36340585,2570.6,2570.5,8.0]
[1748083290171,3.89059642,2570.3,2570.2,0.4576545]
[1748083290371,15.55259642,2570.3,2570.2,0.4576545]
[1748083290791,15.91600227,2570.3,2570.2,0.3679936]
[1748083293368,4.25400227,2570.3,2570.2,0.3679936]
[1748083293569,15.91700227,2570.3,2570.2,0.3679936]
[1748083294507,15.55359642,2570.3,2570.2,0.3679936]
[1748083298120,17.57702241,2570.3,2570.2,0.3679936]
[1748083298325,18.36722241,2570.3,2570.2,0.3679936]
[1748083298886,3.8907478,2570.2,2570.1,8.0]
[1748083299293,3.89135341,2569.8,2569.7,2.77532134]
[1748083299519,15.55435341,2569.8,2569.7,2.77532134]
[1748083301805,15.55435341,2569.8,2569.3,2.77532134]
[1748083301806,3.89195921,2569.4,2569.3,2.77532134]
[1748083302000,15.55595921,2569.4,2569.3,2.77532134]
[1748083302528,16.34615921,2569.4,2569.3,2.77532134]
[1748083302885,16.34615921,2569.4,2569.0,9.97600648]
[1748083302886,3.89241368,2569.1,2569.0,4.75132782]
[1748083303312,3.89241368,2569.1,2569.0,2.77532134]
[1748083305239,3.89157268,2569.7,2569.1,0.8329]
[1748083305392,3.89150484,2569.7,2569.6,10.77532134]
[1748083305614,0.7902,2570.1,2569.7,8.0]
[1748083305818,3.8907478,2570.2,2570.1,8.0]
[1748083306121,15.5557478,2570.2,2570.1,8.0]
[1748083306329,3.89150484,2569.7,2569.3,0.8329]
[1748083306655,3.89185502,2569.5,2569.3,0.8329]
[1748083307260,3.89195921,2569.4,2569.3,0.8329]
[1748083307563,11.666,2569.7,2569.4,8.0]
[1748083307756,3.89165628,2569.6,2569.4,8.0]
[1748083307934,3.89165628,2569.6,2569.5,10.77532134]
[1748083308847,3.89150484,2569.7,2569.6,8.0]
[1748083309051,3.89150484,2569.7,2569.5,2.77532134]
[1748083309359,0.7902,2570.6,2569.6,0.8329]
[1748083309559,15.55629371,2570.5,2570.4,10.77532134]
[1748083310945,3.89029371,2570.5,2570.4,10.77532134]
[1748083311149,15.55629371,2570.5,2570.4,10.77532134]
[1748083311877,15.55629371,2570.5,2570.4,8.0]
[1748083313899,3.89029371,2570.5,2570.4,8.0]
[1748083314097,15.55529371,2570.5,2570.4,8.0]
[1748083315703,3.89029371,2570.5,2570.4,8.0]
[1748083316010,15.55529371,2570.5,2570.4,8.0]
[1748083316356,3.89029371,2570.5,2570.4,9.07753213]
[1748083316701,3.89029371,2570.5,2570.4,9.85783213]
[1748083316898,6.13056474,2570.8,2570.5,8.55]
[1748083317075,6.13056474,2570.8,2570.7,8.0]
[1748083318314,6.13056474,2570.8,2570.7,8.95837572]
[1748083319500,6.13056474,2570.8,2570.7,8.0]
[1748083319825,3.89089918,2570.1,2570.0,1.2789545]
[1748083320146,3.89089918,2570.1,2570.0,5.20898232]
[1748083320695,3.89089918,2570.1,2570.0,4.75132782]
[1748083322091,3.89089918,2570.1,2570.0,1.97600648]
[1748083323194,3.89089918,2570.1,2569.9,8.0]
[1748083323195,3.89105058,2570.0,2569.9,8.0]
[1748083323418,3.89211069,2569.3,2569.2,5.20898232]
[1748083323712,3.89211069,2569.3,2569.2,13.20898232]
[1748083324046,3.89211069,2569.3,2569.2,12.75132782]
[1748083324250,3.89211069,2569.3,2569.2,4.75132782]
[1748083324536,15.55602522,2569.4,2569.2,4.75132782]
[1748083324700,15.55702522,2569.4,2569.3,0.47513278]
[1748083325193,11.665,2569.4,2569.3,0.47513278]
[1748083325393,11.665,2569.4,2569.3,1.06856704]
[1748083325618,3.89180922,2569.5,2569.3,0.47513278]
[1748083325832,3.89195921,2569.4,2569.3,0.47513278]
[1748083327828,3.89211069,2569.3,2569.2,10.77532134]
[1748083329852,3.89211069,2569.3,2569.2,8.0]
[1748083330021,3.89211069,2569.3,2568.9,2.77532134]
[1748083330022,3.8925652,2569.0,2568.9,2.77532134]
[1748083330357,15.5585652,2569.0,2568.9,2.77532134]
[1748083330508,15.5585652,2569.0,2568.9,10.77532134]
[1748083334042,16.3618652,2569.0,2568.9,10.77532134]
[1748083334234,18.38729507,2569.0,2568.9,10.77532134]
[1748083335455,3.8925652,2569.0,2568.9,10.77532134]
[1748083335953,15.55943351,2569.1,2568.9,2.77532134]
[1748083335954,15.55947083,2569.1,2568.9,2.77532134]
[1748083336362,3.8925652,2569.0,2568.9,2.77532134]
[1748083337236,15.5615652,2569.0,2568.9,2.77532134]
[1748083337440,3.89247669,2569.1,2568.9,2.77532134]
[1748083337758,20.6911962,2570.6,2569.1,0.7514]
[1748083337759,4.6651478,2570.2,2569.1,0.7514]
[1748083337960,3.89204284,2569.4,2569.1,0.7514]
[1748083338125,3.89167963,2569.6,2569.3,2.77532134]
[1748083338313,3.89101943,2570.1,2569.5,8.7514]
[1748083338544,3.89089918,2570.1,2570.0,10.77532134]
[1748083338773,4.66529918,2570.1,2570.0,8.0]
[1748083338919,6.25747475,2570.1,2570.0,8.0]
[1748083341791,4.66529918,2570.1,2570.0,8.0]
[1748083342492,16.33329918,2570.1,2570.0,8.0]
[1748083343605,3.89195921,2569.4,2569.3,10.77532134]
[1748083343932,15.55995921,2569.4,2569.3,8.0]
[1748083344139,3.89271672,2568.9,2568.8,2.77532134]
[1748083344286,15.56071672,2568.9,2568.8,2.77532134]
[1748083344985,15.56071672,2568.9,2568.8,10.77532134]
[1748083346833,15.56071672,2568.9,2568.8,8.0]
[1748083347001,17.58404667,2568.9,2568.8,8.0]
[1748083348744,3.89377774,2568.2,2568.1,2.02600648]
[1748083348925,15.56377774,2568.2,2568.1,2.02600648]
[1748083350086,15.56377774,2568.2,2568.1,0.05]
[1748083351432,15.56377774,2568.2,2568.1,0.8022]
[1748083351433,3.89377774,2568.2,2568.1,0.8022]
[1748083351633,4.67433327,2569.0,2568.1,1.95995213]
[1748083351835,3.89286826,2568.8,2568.7,2.77532134]
[1748083352055,0.7817,2569.3,2568.8,8.0]
[1748083352205,3.89298531,2568.8,2568.7,8.0]
[1748083352414,3.89298531,2568.8,2568.7,10.77532134]
[1748083353933,11.671,2568.8,2568.7,10.77532134]
[1748083354439,15.56386826,2568.8,2568.7,13.80287347]
[1748083355334,11.671,2568.8,2568.7,2.77532134]
[1748083355736,15.56386826,2568.8,2568.7,2.77532134]
[1748083356140,3.89317137,2568.6,2568.5,8.0]
[1748083356342,3.89317137,2568.6,2568.5,10.77532134]
[1748083362392,15.56417137,2568.6,2568.5,10.77532134]
[1748083363095,15.56417137,2568.6,2568.5,13.72765347]
[1748083364380,15.56417137,2568.6,2568.5,10.77532134]
[1748083368711,15.56417137,2568.6,2568.5,8.0]
[1748083368915,16.36187137,2568.6,2568.5,8.0]
[1748083370014,3.89332295,2568.5,2568.4,2.77532134]
[1748083370391,3.89332295,2568.5,2568.1,0.05]
[1748083370392,3.89377774,2568.2,2568.1,0.05]
[1748083370602,15.56477774,2568.2,2568.1,2.82532134]
[1748083370918,15.56477774,2568.2,2568.1,10.82532134]
[1748083371228,15.56477774,2568.2,2568.1,2.82532134]
[1748083373229,16.35577774,2568.2,2568.1,2.82532134]
[1748083375187,3.89377774,2568.2,2568.1,2.82532134]
[1748083375408,15.56577774,2568.2,2568.1,2.82532134]
[1748083378212,15.56677774,2568.2,2568.1,2.82532134]
[1748083380341,3.89377774,2568.2,2568.1,2.82532134]
[1748083380541,15.56677774,2568.2,2568.1,2.82532134]
[1748083381667,3.89377774,2568.2,2568.1,10.17525301]
[1748083381826,3.89377774,2568.2,2568.1,11.32605361]
[1748083382026,15.56677774,2568.2,2568.1,11.32605361]
[1748083383354,15.56677774,2568.2,2568.1,10.17525301]
[1748083385996,15.56677774,2568.2,2568.1,9.38275301]
[1748083387689,15.56677774,2568.2,2568.1,8.05]
[1748083389093,3.89377774,2568.2,2568.1,8.05]
[1748083389295,38.2813901,2569.2,2568.2,8.7937]
[1748083389296,3.89330538,2568.6,2568.2,8.7937]
[1748083389473,3.89357192,2568.4,2568.3,0.88437]
[1748083389672,3.89357192,2568.4,2568.3,1.33275301]
[1748083389875,4.67437192,2568.4,2568.3,1.33275301]
[1748083390603,3.89357192,2568.4,2568.3,1.33275301]
[1748083390907,15.56657192,2568.4,2568.3,1.33275301]
[1748083391691,3.89357192,2568.4,2568.3,1.33275301]
[1748083391899,15.56657192,2568.4,2568.3,1.33275301]
[1748083392310,3.89357192,2568.4,2568.3,1.33275301]
[1748083392480,15.56657192,2568.4,2568.3,2.35290831]
[1748083392807,11.673,2568.4,2568.3,2.35290831]
[1748083393813,11.673,2568.4,2568.3,10.72142021]
[1748083394186,3.89338405,2568.5,2568.3,10.72142021]
[1748083394391,3.89332295,2568.5,2568.4,1.15402202]
[1748083394592,15.56632295,2568.5,2568.3,1.70126491]
[1748083394793,11.673,2568.5,2568.3,1.70126491]
[1748083395017,11.673,2568.5,2568.3,1.33275301]
[1748083395594,3.89347453,2568.4,2568.3,1.33275301]
[1748083396527,15.5664053,2568.5,2568.3,1.33275301]
[1748083396687,15.5664053,2568.5,2568.3,2.35290831]
[1748083397822,3.89347453,2568.4,2568.3,2.35290831]
[1748083398816,15.56640377,2568.5,2568.3,2.35290831]
[1748083399023,15.56640377,2568.5,2568.4,1.33275301]
[1748083400928,3.89362613,2568.3,2568.2,0.8188]
[1748083401156,3.89362613,2568.3,2568.2,1.33275301]
[1748083401321,3.89362613,2568.3,2568.2,9.33275301]
[1748083402157,3.89362613,2568.3,2568.2,1.33275301]
[1748083402360,5.83963866,2568.3,2568.2,1.33275301]
[1748083402520,6.60063866,2568.3,2568.2,1.33275301]
[1748083403616,4.65462613,2568.3,2568.2,1.33275301]
[1748083404653,15.56562613,2568.3,2568.2,1.33275301]
[1748083405168,3.89362613,2568.3,2568.2,1.33275301]
[1748083405520,15.56562613,2568.3,2568.2,1.33275301]
[1748083405719,3.89362613,2568.3,2568.2,1.33275301]
[1748083405949,15.56662613,2568.3,2568.2,1.33275301]
[1748083409680,18.27973866,2568.3,2568.2,1.33275301]
[1748083409960,16.33372613,2568.3,2568.2,1.33275301]
[1748083410817,3.89377774,2568.2,2568.1,0.05]
[1748083411020,3.89377774,2568.2,2568.1,1.38275301]
[1748083412063,15.56677774,2568.2,2568.1,1.38275301]
[1748083412460,16.33387774,2568.2,2568.1,1.38275301]
[1748083412625,18.74597804,2568.2,2568.1,1.38275301]
[1748083412964,18.74597804,2568.2,2568.1,0.05]
[1748083413461,19.11005387,2568.2,2568.1,0.05]
[1748083417600,7.43705387,2568.2,2568.1,0.05]
[1748083417788,19.11105387,2568.2,2568.1,1.38275301]
[1748083417991,5.02495357,2568.2,2568.1,1.38275301]
[1748083418491,3.89377774,2568.2,2568.1,1.38275301]
[1748083418692,15.56777774,2568.2,2568.1,9.38275301]
[1748083419280,3.89377774,2568.2,2568.1,9.38275301]
[1748083419450,4.66227947,2568.8,2568.1,10.53068361]
[1748083419646,3.89377774,2568.2,2568.1,9.1979306]
[1748083420874,15.56764855,2568.3,2568.1,9.1979306]
[1748083421080,3.89364855,2568.3,2568.2,9.33275301]
[1748083421281,15.56764855,2568.3,2568.2,1.33275301]
[1748083424201,0.7693,2568.8,2568.2,2.40430361]
[1748083424399,0.7693,2568.8,2568.7,1.33275301]
[1748083424700,16.33616826,2568.8,2568.7,1.33275301]
[1748083424859,16.69962049,2568.8,2568.7,1.33275301]
[1748083425172,3.89317137,2568.6,2568.5,1.33275301]
[1748083425373,0.36345223,2568.8,2568.7,3.89301981]
[1748083425598,0.7542,2570.0,2568.9,0.7702]
[1748083425808,11.674,2570.0,2569.8,1.33275301]
[1748083426108,23.13785414,2570.8,2569.9,9.38189646]
[1748083426109,11.674,2570.2,2569.9,9.38189646]
[1748083426260,15.5647478,2570.2,2570.1,1.33275301]
[1748083426461,15.5647478,2570.2,2570.1,10.58131613]
[1748083426685,15.5647478,2570.2,2570.1,9.33275301]
[1748083426884,15.5627478,2570.2,2570.1,9.33275301]
[1748083427324,3.8907478,2570.2,2570.1,9.33275301]
[1748083427522,15.5627478,2570.2,2570.1,9.33275301]
[1748083427721,15.5627478,2570.2,2570.1,10.76781611]
[1748083428021,3.8907478,2570.2,2570.1,10.76781611]
[1748083428703,3.8907478,2570.2,2570.1,8.0]
[1748083428909,15.5627478,2570.2,2570.1,8.0]
[1748083429079,15.5627478,2570.2,2570.1,10.76781611]
[1748083430162,17.50808249,2570.2,2570.1,8.0]
[1748083430601,17.50608249,2570.2,2570.1,8.0]
[1748083430906,15.5607478,2570.2,2570.1,8.0]
[1748083431799,3.8907478,2570.2,2570.1,8.0]
[1748083432010,15.5607478,2570.2,2570.1,8.0]
[1748083432504,3.8907478,2570.2,2570.1,8.0]
[1748083432698,15.5597478,2570.2,2570.1,8.0]
[1748083433807,3.8907478,2570.2,2570.1,8.0]
[1748083434120,15.5597478,2570.2,2570.1,8.0]
[1748083437524,3.8907478,2570.2,2570.1,10.76781611]
[1748083437895,3.8907478,2570.2,2570.1,8.0]
[1748083438221,5.83568249,2570.2,2570.1,8.0]
[1748083439229,6.63688249,2570.2,2570.1,8.0]
[1748083440590,16.3589478,2570.2,2570.1,8.0]
[1748083441141,3.89195921,2569.4,2569.0,17.194]
[1748083441319,11.667,2569.5,2569.4,8.0]
[1748083441518,15.55880774,2569.5,2569.4,8.0]
[1748083441714,3.89114425,2570.0,2569.5,0.7583]
[1748083441915,0.7604,2570.6,2570.0,8.0]
[1748083441916,3.89089918,2570.1,2570.0,8.0]
[1748083442116,3.89089918,2570.1,2570.0,3.52611611]
[1748083445031,0.8104,2570.9,2570.0,3.52611611]
[1748083445369,3.88999105,2570.7,2570.6,10.76781611]
[1748083445511,15.55599105,2570.7,2570.6,10.76781611]
[1748083447051,3.88999105,2570.7,2570.6,8.0]
[1748083447249,3.88999105,2570.7,2570.6,10.76781611]
[1748083447845,3.88999105,2570.7,2570.6,8.0]
[1748083448051,6.06354126,2570.7,2570.6,8.0]
[1748083448723,6.87274126,2570.7,2570.6,8.0]
[1748083448944,3.89059642,2570.3,2570.2,2.76781611]
[1748083449131,15.55559642,2570.3,2570.2,2.76781611]
[1748083449341,15.55559642,2570.3,2570.2,10.76781611]
[1748083449711,15.55559642,2570.3,2570.2,9.33044907]
[1748083450362,11.665,2570.3,2570.2,10.09124907]
[1748083450551,3.89059642,2570.3,2570.2,3.23341888]
[1748083450755,3.89059642,2570.3,2570.2,2.09124907]
[1748083451159,3.89059642,2570.3,2570.2,27.28124907]
[1748083451349,3.89053973,2570.4,2570.3,8.0]
[1748083452628,3.89037084,2570.5,2570.3,8.0]
[1748083452828,3.89037084,2570.5,2570.4,1.33044907]
[1748083453129,2.24065414,2570.8,2570.5,8.0]
[1748083453333,3.89014237,2570.6,2570.5,8.0]
[1748083453686,11.665,2570.7,2570.5,8.0]
[1748083453829,3.89014237,2570.6,2570.5,8.0]
[1748083454472,3.89014237,2570.6,2570.5,9.33044907]
[1748083455335,3.89014237,2570.6,2570.5,10.53630647]
[1748083455530,2.24065414,2570.8,2570.5,10.53630647]
[1748083455730,6.13050998,2570.8,2570.7,1.33044907]
[1748083456673,6.13050998,2570.8,2570.7,9.33044907]
[1748083457478,6.13050998,2570.8,2570.7,1.33044907]
[1748083458682,17.79350998,2570.8,2570.7,2.83426602]
[1748083458867,17.79350998,2570.8,2570.7,1.33044907]
[1748083462086,6.13050998,2570.8,2570.7,1.33044907]
[1748083462290,17.79350998,2570.8,2570.7,1.33044907]
[1748083464883,18.55590998,2570.8,2570.7,1.33044907]
[1748083465086,20.80547196,2570.8,2570.7,1.33044907]
[1748083465924,21.16853611,2570.8,2570.7,1.33044907]
[1748083466216,3.88999105,2570.7,2570.0,8.0]
[1748083466365,3.89014237,2570.6,2570.5,1.33044907]
[1748083466961,3.89029371,2570.5,2570.3,1.33044907]
[1748083467155,15.55344506,2570.4,2570.3,1.33044907]
[1748083467374,3.89150484,2569.7,2569.6,0.4576545]
[1748083467608,3.89150484,2569.7,2569.6,18.46010357]
[1748083467819,3.89146426,2569.8,2569.7,8.0]
[1748083468111,3.89146426,2569.8,2569.7,11.94999309]
[1748083469615,3.89146426,2569.8,2569.6,9.33044907]
[1748083469901,3.89150484,2569.7,2569.6,26.00344907]
[1748083470100,3.89150484,2569.7,2569.6,1.33044907]
[1748083470556,3.89150484,2569.7,2569.6,9.33044907]
[1748083473386,15.55550484,2569.7,2569.6,9.33044907]
[1748083476725,15.55550484,2569.7,2569.6,1.33044907]
[1748083478518,18.33200175,2569.7,2569.6,1.33044907]
[1748083479043,4.72330484,2569.7,2569.6,1.33044907]
[1748083479344,16.38930484,2569.7,2569.6,1.33044907]
[1748083479842,3.89150484,2569.7,2569.6,1.33044907]
[1748083480120,15.55750484,2569.7,2569.6,1.33044907]
[1748083488736,15.55750484,2569.7,2569.2,0.18895384]
[1748083488737,3.89213612,2569.3,2569.2,1.33044907]
[1748083488948,0.8318,2569.8,2569.2,1.33044907]
[1748083489252,3.89195921,2569.4,2569.3,0.762]
[1748083489405,15.55895921,2569.4,2569.3,0.762]
[1748083489602,0.8318,2570.0,2569.3,0.762]
[1748083489951,3.89166299,2569.6,2569.3,0.762]
[1748083490133,3.89166299,2569.6,2569.4,8.0]
[1748083490447,3.89166299,2569.6,2569.5,1.33044907]
[1748083492409,3.89136875,2569.8,2569.5,1.33044907]
[1748083492613,3.89136875,2569.8,2569.7,1.33044907]
[1748083492812,15.55836875,2569.8,2569.7,1.33044907]
[1748083495231,17.50332818,2569.8,2569.7,1.33044907]
[1748083495431,18.30692818,2569.8,2569.7,1.33044907]
[1748083495954,14.41555943,2569.8,2569.7,1.33044907]
[1748083496117,16.36195341,2569.8,2569.7,1.33044907]
[1748083498164,15.55835341,2569.8,2569.7,1.33044907]
[1748083498358,20.56847355,2570.4,2569.7,1.33044907]
[1748083498359,0.8036,2570.0,2569.7,1.33044907]
[1748083498563,15.55835341,2569.8,2569.7,1.33044907]
[1748083499012,3.89195921,2569.4,2569.3,8.0]
[1748083499214,15.55895921,2569.4,2569.3,9.33044907]
[1748083499661,15.55895921,2569.4,2569.3,9.69806017]
[1748083500177,15.55895921,2569.4,2569.3,1.69806017]
[1748083500717,3.89195921,2569.4,2569.3,1.69806017]
[1748083500961,15.55895921,2569.4,2569.3,1.69806017]
[1748083501663,3.89136342,2569.8,2569.3,1.69806017]
[1748083501664,3.89143636,2569.8,2569.3,1.69806017]
[1748083501846,3.89189178,2569.5,2569.3,1.1744111]
[1748083502018,3.89189178,2569.5,2569.4,9.33044907]
[1748083502218,3.89167307,2569.6,2569.4,9.33044907]
[1748083502219,3.89173847,2569.6,2569.4,10.38093509]
[1748083502450,15.55880774,2569.5,2569.4,10.74854619]
[1748083502654,11.667,2570.1,2569.5,0.8068]
[1748083502955,3.89135341,2569.8,2569.7,8.0]
[1748083503168,3.89121956,2569.9,2569.7,10.54668]
[1748083503351,3.89081596,2570.2,2569.7,14.4381086]
[1748083503660,11.667,2570.5,2570.1,2.13724907]
[1748083503870,11.667,2570.5,2570.3,9.33044907]
[1748083504064,3.89018874,2570.6,2570.3,12.21625203]
[1748083504218,15.55718874,2570.6,2570.5,2.13724907]
[1748083504416,3.89018874,2570.6,2570.5,2.13724907]
[1748083504641,3.89018874,2570.6,2570.5,1.33044907]
[1748083504848,3.89059642,2570.3,2570.2,25.4918]
[1748083505029,3.89059642,2570.3,2570.2,29.50447398]
[1748083505235,3.89059642,2570.3,2570.2,9.33044907]
[1748083505629,15.55659642,2570.3,2570.2,9.33044907]
[1748083508854,3.89059642,2570.3,2570.2,9.33044907]
[1748083509049,3.89051836,2570.4,2570.3,8.0]
[1748083509345,15.55651836,2570.4,2570.2,2.16324907]
[1748083509540,3.89034335,2570.5,2570.3,8.0]
[1748083509746,15.55634335,2570.5,2570.4,1.33044907]
[1748083510064,3.89034335,2570.5,2570.4,1.33044907]
[1748083510271,3.89004432,2570.7,2570.4,1.33044907]
[1748083510469,15.55604432,2570.7,2570.6,1.33044907]
[1748083510671,15.55604432,2570.7,2570.6,1.54677398]
[1748083510870,15.55604432,2570.7,2570.6,1.33044907]
[1748083511491,15.55504432,2570.7,2570.6,1.33044907]
[1748083512296,3.89014237,2570.6,2570.5,0.8328]
[1748083512456,3.89014237,2570.6,2570.5,10.16324907]
[1748083512651,3.8900265,2570.7,2570.5,12.84527398]
[1748083512998,3.89003336,2570.7,2570.5,12.84527398]
[1748083513385,2.24065414,2570.8,2570.5,12.84527398]
[1748083513386,13.90565414,2570.8,2570.5,12.84527398]
[1748083513698,3.89009103,2570.7,2570.5,11.51482491]
[1748083514800,17.79456115,2570.8,2570.6,1.33044907]
[1748083514985,2.24065414,2570.8,2570.7,9.2845274]
[1748083515160,6.13049387,2570.8,2570.7,9.2845274]
[1748083516598,2.24065414,2570.8,2570.7,9.2845274]
[1748083516794,6.13049387,2570.8,2570.7,9.2845274]
[1748083517611,2.24065414,2570.8,2570.7,9.2845274]
[1748083518406,6.13049387,2570.8,2570.7,9.2845274]
[1748083519366,2.24065414,2570.8,2570.7,9.2845274]
[1748083521329,6.13049387,2570.8,2570.7,9.2845274]
[1748083522304,3.93831668,2571.9,2571.0,0.7769]
[1748083522508,3.88812056,2572.0,2571.8,2.10734907]
[1748083522665,11.662,2571.9,2571.8,1.33044907]
[1748083523123,15.55017605,2571.9,2571.8,1.33044907]
[1748083524591,3.88817605,2571.9,2571.8,1.33044907]
[1748083524797,16.30587605,2571.9,2571.8,1.33044907]
[1748083525935,16.30587605,2571.9,2571.6,1.33044907]
[1748083525936,3.88847843,2571.7,2571.6,1.33044907]
[1748083526492,3.88832724,2571.8,2571.6,1.33044907]
[1748083526493,3.88837757,2571.8,2571.6,1.33044907]
[1748083526809,3.88840612,2571.8,2571.6,1.33044907]
[1748083527019,3.88825048,2571.9,2571.6,1.33044907]
[1748083527236,3.88825048,2571.9,2571.8,1.33044907]
[1748083527541,11.661,2572.0,2571.8,2.14664907]
[1748083527695,3.88788508,2572.1,2571.8,2.14664907]
[1748083527895,3.88788508,2572.1,2572.0,1.33044907]
[1748083528194,0.94307003,2572.2,2572.1,8.0]
[1748083528419,16.4917926,2572.2,2572.1,8.0]
[1748083528623,12.60407003,2572.2,2572.1,8.0]
[1748083528845,16.4917926,2572.2,2572.1,8.0]
[1748083529236,0.94307003,2572.2,2572.1,9.88228981]
[1748083529699,0.94307003,2572.2,2572.1,4.64545818]
[1748083529893,0.94307003,2572.2,2572.1,3.57936837]
[1748083530528,0.94307003,2572.2,2572.1,4.12936837]
[1748083530746,3.81132391,2572.8,2572.4,3.88741443]
[1748083530913,3.14585015,2572.8,2572.7,10.76316837]
[1748083531116,1.87489619,2572.8,2572.7,15.95663536]
[1748083531316,3.88602492,2573.4,2573.0,0.7565]
[1748083531522,3.8856077,2573.6,2573.0,0.7565]
[1748083531744,3.88609516,2573.3,2573.2,10.76316837]
[1748083532040,15.49309516,2573.3,2573.2,8.0]
[1748083532251,3.83609516,2573.3,2573.2,8.0]
[1748083532539,16.34770697,2573.3,2573.2,8.0]
[1748083532740,4.69070697,2573.3,2573.2,8.0]
[1748083533202,16.34770697,2573.3,2573.2,8.0]
[1748083534198,3.83609516,2573.3,2573.2,8.0]
[1748083534396,15.49309516,2573.3,2573.2,8.0]
[1748083534643,3.83609516,2573.3,2573.2,8.0]
[1748083534841,15.49209516,2573.3,2573.2,8.0]
[1748083535502,3.83609516,2573.3,2573.2,8.0]
[1748083535806,15.49209516,2573.3,2573.2,8.0]
[1748083536717,3.83609516,2573.3,2573.2,8.0]
[1748083536913,1.77883249,2573.7,2573.3,8.0]